fUSD/lending_fUSD_20250215
["ID","MTS","AMOUNT","RATE_DAILY","PERIOD"]
[353176577,1739629848754,-500.0,0.00011126,2]
[353176578,1739629848763,-500.0,0.00011126,2]
[353176579,1739629848774,-500.0,0.00011126,2]
[353176580,1739629848784,-581.243182,0.00011126,2]
[353176581,1739629848795,-500.0,0.00011126,2]
[353176582,1739629848806,-503.82641742,0.00011126,2]
[353176583,1739629848817,-500.0,0.00011126,2]
[353176584,1739629848827,-500.0,0.00011126,2]
[353176585,1739629848838,-964.05,0.00011126,2]
[353176586,1739629848849,-500.0,0.00011126,2]
[353176587,1739629848859,-584.62,0.00011126,2]
[353176588,1739629848870,-500.0,0.00011126,2]
[353176589,1739629848880,-802.38,0.00011126,2]
[353176590,1739629848895,-500.0,0.00011126,2]
[353176591,1739629848904,-500.0,0.00011126,2]
[353176592,1739629848915,-500.0,0.00011126,2]
[353176593,1739629848925,-500.0,0.00011126,2]
[353176594,1739629848938,-500.0,0.00011126,2]
[353176595,1739629848948,-500.0,0.00011126,2]
[353176596,1739629848958,-500.0,0.00011126,2]
[353176597,1739629848970,-487.57288583,0.00011126,2]
[353176598,1739629848980,-500.0,0.00011126,2]
[353176599,1739629848990,-500.0,0.00011126,2]
[353176600,1739629848999,-553.31,0.00011126,2]
[353176601,1739629849008,-500.0,0.00011126,2]
[353176602,1739629849018,-500.0,0.00011126,2]
[353176603,1739629849027,-500.0,0.00011126,2]
[353176604,1739629849037,-286.66974938,0.00011126,2]
[353176605,1739629849047,-500.0,0.00011126,2]
[353176606,1739629849057,-300.0,0.00011126,2]
[353176607,1739629849068,-500.0,0.00011127,2]
[353176608,1739629849080,-500.0,0.00011127,2]
[353176609,1739629849091,-500.0,0.00011127,2]
[353176610,1739629849102,-500.0,0.00011127,2]
[353176611,1739629849112,-500.0,0.00011127,2]
[353176612,1739629849123,-602.99,0.00011127,2]
[353176613,1739629849133,-500.0,0.00011127,2]
[353176614,1739629849143,-500.0,0.00011127,2]
[353176615,1739629849154,-500.0,0.00011127,2]
[353176616,1739629849164,-450.62,0.00011127,2]
[353176617,1739629849175,-500.0,0.00011127,2]
[353176618,1739629849186,-500.0,0.00011127,2]
[353176619,1739629849197,-500.0,0.00011127,2]
[353176620,1739629849208,-500.0,0.00011127,2]
[353176621,1739629849219,-415.55,0.00011127,2]
[353176622,1739629849229,-500.0,0.00011127,2]
[353176623,1739629849240,-500.0,0.00011127,2]
[353176624,1739629849250,-500.0,0.00011127,2]
[353176625,1739629849260,-500.0,0.00011127,2]
[353176626,1739629849270,-500.0,0.00011127,2]
[353176627,1739629849280,-359.7,0.00011127,2]
[353176628,1739629849289,-410.3,0.00011127,2]
[353176629,1739629849300,-500.0,0.00011127,2]
[353176630,1739629849311,-500.0,0.00011127,2]
[353176631,1739629849321,-500.0,0.00011127,2]
[353176632,1739629849332,-500.0,0.00011127,2]
[353176633,1739629849343,-500.0,0.00011127,2]
[353176634,1739629849353,-500.0,0.00011127,2]
[353176635,1739629849363,-519.51,0.00011127,2]
[353176636,1739629849373,-500.0,0.00011127,2]
[353176637,1739629849384,-500.0,0.00011127,2]
[353176638,1739629849394,-500.0,0.00011127,2]
[353176639,1739629849404,-500.0,0.00011127,2]
[353176640,1739629849414,-171.5,0.00011127,2]
[353176641,1739629849424,-500.0,0.00011127,2]
[353176642,1739629849434,-293.17064333,0.00011127,2]
[353176643,1739629849445,-500.0,0.00011127,2]
[353176644,1739629849455,-500.0,0.00011127,2]
[353176645,1739629849465,-500.0,0.00011127,2]
[353176646,1739629849476,-500.0,0.00011127,2]
[353176647,1739629849487,-500.0,0.00011127,2]
[353176648,1739629849497,-500.0,0.00011127,2]
[353176649,1739629849507,-689.84,0.00011127,2]
[353176650,1739629849517,-411.74,0.00011127,2]
[353176651,1739629849527,-500.0,0.00011127,2]
[353176652,1739629849537,-707.88,0.00011127,2]
[353176653,1739629849547,-893.57,0.00011127,2]
[353176654,1739629849557,-991.04,0.00011127,2]
[353176655,1739629849568,-736.64,0.00011127,2]
[353176656,1739629849578,-839.33,0.00011127,2]
[353176657,1739629849588,-500.0,0.00011127,2]
[353176658,1739629849597,-300.0,0.00011127,2]
[353176659,1739629849607,-632.77813076,0.00011128,2]
[353176660,1739629849616,-500.0,0.00011128,2]
[353176661,1739629849626,-500.0,0.00011128,2]
[353176662,1739629849674,-500.0,0.00011128,2]
[353176663,1739629849684,-500.0,0.00011128,2]
[353176664,1739629849693,-500.0,0.00011128,2]
[353176665,1739629849702,-500.0,0.00011128,2]
[353176666,1739629849712,-500.0,0.00011128,2]
[353176667,1739629849721,-500.0,0.00011128,2]
[353176668,1739629849730,-500.0,0.00011128,2]
[353176669,1739629849740,-500.0,0.00011128,2]
[353176670,1739629849749,-500.0,0.00011128,2]
[353176671,1739629849759,-510.71286234,0.00011128,2]
[353176672,1739629849768,-167499.50485766,0.00011162,2]
[353176673,1739629850215,-337742.4064614,0.00011162,2]
[353176675,1739630184082,-300.0,8.835e-05,2]
[353176676,1739630184105,-238.5052,8.836e-05,2]
[353176677,1739630184127,-9461.4948,8.836e-05,2]
[353176678,1739630184962,-10000.0,8.836e-05,2]
[353176679,1739630186399,-7024.307,8.836e-05,2]
[353176680,1739630215021,-2500.0,8.851e-05,2]
[353176681,1739630215045,-2500.0,8.973e-05,2]
[353176685,1739630712228,293.58,8.219e-05,2]
[353176686,1739630741017,1000.0,0.0002,120]
[353176687,1739630838924,2000.0,0.0002,120]
[353176688,1739630864365,1000.0,8.8e-05,2]
[353176689,1739630892359,200.0,0.0002,120]
[353176690,1739630918891,1200.0,0.0002,120]
[353176692,1739630948584,-1143.37286,8.973e-05,2]
[353176705,1739631021625,-2500.0,8.851e-05,2]
[353176706,1739631021647,-1182.0,8.973e-05,2]
[353176719,1739631031917,-0.2615,8.973e-05,2]
[353176720,1739631031927,-392.33548818,0.0001,2]
[353176721,1739631031938,-823.66451182,0.0001,2]
[353176722,1739631031948,-150.0,0.00010036,2]
[353176723,1739631031957,-150.0,0.00010036,2]
[353176724,1739631031967,-376.33548818,0.00010072,2]
[353176725,1739631032359,-322.7310776,0.00010072,2]
[353176726,1739631032498,-1008.7217319,0.00010072,2]
[353176727,1739631032546,-1620.4498239,0.00010072,2]
[353176729,1739631037848,-2079.91369852,0.00010072,2]
[353176730,1739631037860,-5767.1981799,0.00010072,2]
[353176731,1739631037869,-568.43,0.00010104,2]
[353176732,1739631037879,-1000.0,0.00010118,2]
[353176733,1739631037889,-166.68,0.00010137,2]
[353176734,1739631037899,-500.0,0.000103,3]
[353176735,1739631037908,-1000.0,0.000104,3]
[353176736,1739631037917,-293.58,0.00010477,2]
[353176737,1739631037927,-1500.0,0.000105,3]
[353176738,1739631037936,-2100.0,0.000106,3]
[353176739,1739631037945,-2600.0,0.000107,3]
[353176740,1739631037954,-500.0,0.000108,3]
[353176741,1739631037964,-622.31049676,0.0001086,2]
[353176742,1739631037974,-500.0,0.000109,3]
[353176743,1739631037984,-150.0,0.00010959,2]
[353176744,1739631037994,-150.0,0.00010959,2]
[353176745,1739631038003,-500.0,0.00010959,2]
[353176746,1739631038012,-500.0,0.0001096,2]
[353176747,1739631038022,-500.0,0.0001096,2]
[353176748,1739631038031,-242.74,0.0001096,2]
[353176749,1739631038040,-500.0,0.0001096,2]
[353176750,1739631038050,-500.0,0.0001096,2]
[353176751,1739631038059,-500.0,0.0001096,2]
[353176752,1739631038068,-500.0,0.0001096,2]
[353176753,1739631038078,-500.0,0.0001096,2]
[353176754,1739631038087,-500.0,0.0001096,2]
[353176755,1739631038097,-500.0,0.0001096,2]
[353176756,1739631038106,-603.2,0.0001096,2]
[353176757,1739631038115,-500.0,0.0001096,2]
[353176758,1739631038125,-500.0,0.0001096,2]
[353176759,1739631038134,-500.0,0.0001096,2]
[353176760,1739631038144,-500.0,0.0001096,2]
[353176761,1739631038153,-511.2033621,0.0001096,2]
[353176762,1739631038163,-643.5,0.0001096,2]
[353176763,1739631038172,-500.0,0.0001096,2]
[353176764,1739631038182,-500.0,0.0001096,2]
[353176765,1739631038191,-501.66708305,0.0001096,2]
[353176766,1739631038200,-500.0,0.0001096,2]
[353176767,1739631038210,-500.0,0.0001096,2]
[353176768,1739631038219,-500.0,0.0001096,2]
[353176770,1739631038229,-568.03,0.0001096,2]
[353176772,1739631038240,-500.0,0.0001096,2]
[353176774,1739631038251,-500.0,0.0001096,2]
[353176777,1739631038260,-500.0,0.0001096,2]
[353176779,1739631038270,-500.0,0.0001096,2]
[353176780,1739631038280,-500.0,0.0001096,2]
[353176782,1739631038290,-500.0,0.0001096,2]
[353176784,1739631038300,-534.84,0.0001096,2]
[353176786,1739631038309,-562.77,0.0001096,2]
[353176787,1739631038320,-500.0,0.0001096,2]
[353176788,1739631038330,-500.0,0.0001096,2]
[353176789,1739631038339,-500.0,0.0001096,2]
[353176790,1739631038348,-643.47,0.0001096,2]
[353176791,1739631038358,-500.0,0.0001096,2]
[353176792,1739631038367,-500.0,0.0001096,2]
[353176793,1739631038376,-500.0,0.0001096,2]
[353176794,1739631038386,-500.0,0.0001096,2]
[353176795,1739631038396,-500.0,0.0001096,2]
[353176796,1739631038407,-500.0,0.0001096,2]
[353176797,1739631038416,-500.0,0.0001096,2]
[353176798,1739631038426,-500.0,0.0001096,2]
[353176799,1739631038435,-500.0,0.0001096,2]
[353176800,1739631038445,-500.0,0.0001096,2]
[353176801,1739631038455,-250.75179391,0.0001096,2]
[353176802,1739631038465,-500.0,0.0001096,2]
[353176803,1739631038475,-500.0,0.0001096,2]
[353176804,1739631038485,-510.88666813,0.0001096,2]
[353176805,1739631038494,-500.0,0.0001096,2]
[353176806,1739631038503,-500.0,0.0001096,2]
[353176807,1739631038513,-500.0,0.0001096,2]
[353176808,1739631038522,-500.0,0.0001096,2]
[353176809,1739631038531,-500.0,0.0001096,2]
[353176810,1739631038541,-649.18551669,0.0001096,2]
[353176811,1739631038550,-589.19,0.0001096,2]
[353176812,1739631038560,-500.0,0.0001096,2]
[353176813,1739631038569,-500.0,0.0001096,2]
[353176814,1739631038578,-500.0,0.0001096,2]
[353176815,1739631038588,-500.0,0.0001096,2]
[353176816,1739631038597,-500.0,0.0001096,2]
[353176817,1739631038607,-500.0,0.0001096,2]
[353176818,1739631038616,-500.0,0.0001096,2]
[353176819,1739631038625,-548.00675095,0.0001096,2]
[353176820,1739631038635,-510.52090076,0.0001096,2]
[353176821,1739631038646,-500.0,0.0001096,2]
[353176822,1739631038655,-500.0,0.0001096,2]
[353176823,1739631038664,-502.71494938,0.0001096,2]
[353176824,1739631038673,-500.0,0.0001096,2]
[353176825,1739631038682,-500.0,0.0001096,2]
[353176826,1739631038692,-500.0,0.0001096,2]
[353176827,1739631038701,-500.0,0.0001096,2]
[353176828,1739631038710,-500.0,0.0001096,2]
[353176829,1739631038721,-500.0,0.0001096,2]
[353176830,1739631038731,-500.0,0.0001096,2]
[353176831,1739631038740,-500.0,0.0001096,2]
[353176832,1739631038749,-500.0,0.0001096,2]
[353176833,1739631038766,-524.47,0.0001096,2]
[353176834,1739631038776,-500.0,0.0001096,2]
[353176835,1739631038785,-525.24665802,0.0001096,2]
[353176836,1739631038794,-500.0,0.0001096,2]
[353176837,1739631038805,-151.472388,0.0001096,2]
[353176838,1739631038821,-512.57,0.0001096,2]
[353176839,1739631038838,-467.19784368,0.0001096,2]
[353176840,1739631038847,-500.0,0.0001096,2]
[353176841,1739631038857,-500.0,0.0001096,2]
[353176842,1739631038866,-500.0,0.0001096,2]
[353176843,1739631038876,-500.0,0.0001096,2]
[353176844,1739631038886,-500.0,0.0001096,2]
[353176845,1739631038895,-553.34,0.0001096,2]
[353176846,1739631038905,-500.0,0.0001096,2]
[353176847,1739631038915,-500.0,0.0001096,2]
[353176848,1739631038925,-675.42,0.0001096,2]
[353176849,1739631038936,-500.0,0.0001096,2]
[353176850,1739631038945,-500.0,0.0001096,2]
[353176851,1739631038954,-153.620143,0.0001096,2]
[353176852,1739631038963,-500.0,0.0001096,2]
[353176853,1739631038974,-501.35915371,0.0001096,2]
[353176854,1739631038984,-500.0,0.0001096,2]
[353176855,1739631038996,-500.0,0.0001096,2]
[353176856,1739631039005,-500.0,0.0001096,2]
[353176857,1739631039015,-500.0,0.0001096,2]
[353176858,1739631039025,-500.0,0.0001096,2]
[353176859,1739631039035,-500.0,0.0001096,2]
[353176860,1739631039044,-736.1,0.0001096,2]
[353176861,1739631039053,-500.0,0.0001096,2]
[353176862,1739631039062,-500.0,0.0001096,2]
[353176863,1739631039071,-284.31008699,0.0001096,2]
[353176864,1739631039080,-500.0,0.0001096,2]
[353176865,1739631039089,-961.36,0.0001096,2]
[353176866,1739631039098,-500.0,0.0001096,2]
[353176867,1739631039107,-842.22,0.0001096,2]
[353176868,1739631039116,-500.0,0.0001096,2]
[353176869,1739631039124,-500.0,0.0001096,2]
[353176870,1739631039134,-500.0,0.0001096,2]
[353176871,1739631039144,-500.0,0.0001096,2]
[353176872,1739631039153,-500.0,0.0001096,2]
[353176873,1739631039162,-500.0,0.0001096,2]
[353176874,1739631039171,-507.50073635,0.0001096,2]
[353176875,1739631039180,-500.0,0.0001096,2]
[353176876,1739631039189,-500.0,0.0001096,2]
[353176877,1739631039198,-703.02,0.0001096,2]
[353176878,1739631039207,-500.0,0.0001096,2]
[353176879,1739631039216,-500.0,0.0001096,2]
[353176880,1739631039227,-500.0,0.0001096,2]
[353176881,1739631039239,-500.0,0.0001096,2]
[353176882,1739631039249,-500.0,0.0001096,2]
[353176883,1739631039258,-500.0,0.0001096,2]
[353176884,1739631039267,-500.0,0.0001096,2]
[353176885,1739631039276,-500.0,0.0001096,2]
[353176886,1739631039285,-500.0,0.0001096,2]
[353176887,1739631039294,-500.0,0.0001096,2]
[353176888,1739631039303,-500.0,0.0001096,2]
[353176889,1739631039313,-500.0,0.0001096,2]
[353176890,1739631039322,-500.0,0.0001096,2]
[353176891,1739631039332,-500.0,0.0001096,2]
[353176892,1739631039341,-754.93,0.0001096,2]
[353176893,1739631039351,-500.0,0.0001096,2]
[353176894,1739631039360,-500.0,0.0001096,2]
[353176895,1739631039369,-2460.38,0.0001096,2]
[353176896,1739631039378,-500.0,0.0001096,2]
[353176897,1739631039387,-500.0,0.0001096,2]
[353176898,1739631039396,-500.0,0.0001096,2]
[353176899,1739631039405,-500.0,0.0001096,2]
[353176900,1739631039415,-500.0,0.0001096,2]
[353176901,1739631039424,-500.0,0.0001096,2]
[353176902,1739631039433,-500.0,0.0001096,2]
[353176903,1739631039442,-529.57,0.0001096,2]
[353176904,1739631039451,-707.56,0.0001096,2]
[353176905,1739631039461,-76987.58632681,0.0001096,2]
[353176906,1739631039472,-500.0,0.0001096,2]
[353176907,1739631039481,-500.0,0.0001096,2]
[353176908,1739631039490,-500.0,0.0001096,2]
[353176909,1739631039499,-500.0,0.0001096,2]
[353176910,1739631039508,-500.0,0.0001096,2]
[353176911,1739631039518,-500.0,0.0001096,2]
[353176912,1739631039527,-557.71,0.0001096,2]
[353176913,1739631039536,-500.0,0.0001096,2]
[353176914,1739631039545,-931.7,0.0001096,2]
[353176915,1739631039555,-660.01,0.0001096,2]
[353176916,1739631039563,-500.0,0.0001096,2]
[353176917,1739631039573,-500.0,0.0001096,2]
[353176918,1739631039582,-500.0,0.0001096,2]
[353176919,1739631039591,-500.0,0.0001096,2]
[353176920,1739631039601,-500.0,0.0001096,2]
[353176921,1739631039610,-500.0,0.0001096,2]
[353176922,1739631039619,-500.0,0.0001096,2]
[353176923,1739631039628,-500.0,0.0001096,2]
[353176924,1739631039637,-1770.04,0.0001096,2]
[353176925,1739631039647,-500.0,0.0001096,2]
[353176926,1739631039656,-798.16,0.0001096,2]
[353176927,1739631039665,-500.0,0.0001096,2]
[353176929,1739631039675,-500.0,0.0001096,2]
[353176931,1739631039684,-500.0,0.0001096,2]
[353176933,1739631039693,-159.20401204,0.0001096,2]
[353176957,1739631039920,-353.38598796,0.0001096,2]
[353176959,1739631039930,-500.0,0.0001096,2]
[353176961,1739631039939,-408.96328877,0.0001096,2]
[353176963,1739631039951,-91.03671123,0.0001096,2]
[353176965,1739631039960,-350.27508016,0.0001096,2]
[353176967,1739631039973,-149.72491984,0.0001096,2]
[353176969,1739631039982,-287.30715022,0.0001096,2]
[353176971,1739631039994,-212.69284978,0.0001096,2]
[353176973,1739631040003,-500.0,0.0001096,2]
[353176975,1739631040012,-168.12817033,0.0001096,2]
[353176979,1739631040042,-331.87182967,0.0001096,2]
[353176981,1739631040051,-500.0,0.0001096,2]
[353176983,1739631040060,-500.0,0.0001096,2]
[353176985,1739631040069,-500.0,0.0001096,2]
[353176986,1739631040078,-500.0,0.0001096,2]
[353176988,1739631040087,-500.0,0.0001096,2]
[353176989,1739631040097,-339.24541864,0.0001096,2]
[353176993,1739631040152,-160.75458136,0.0001096,2]
[353176994,1739631040162,-500.0,0.0001096,2]
[353176995,1739631040171,-500.0,0.0001096,2]
[353176996,1739631040180,-180.14541864,0.0001096,2]
[353176997,1739631040191,-319.85458136,0.0001096,2]
[353176998,1739631040201,-500.0,0.0001096,2]
[353176999,1739631040210,-500.0,0.0001096,2]
[353177000,1739631040219,-287.08004526,0.0001096,2]
[353177001,1739631040229,-509.39274232,0.0001096,2]
[353177002,1739631040243,-500.0,0.0001096,2]
[353177003,1739631040252,-754.7,0.0001096,2]
[353177004,1739631040261,-500.0,0.0001096,2]
[353177005,1739631040271,-500.0,0.0001096,2]
[353177006,1739631040281,-616.91559106,0.0001096,2]
[353177007,1739631040494,-24.96440894,0.0001096,2]
[353177008,1739631040508,-326.55209106,0.0001096,2]
[353177009,1739631041406,-312.81399998,0.0001096,2]
[353177040,1739631043056,-338.69390896,0.0001096,2]
[353177041,1739631043065,-489.71977758,0.0001096,2]
[353177042,1739631043397,-390.47022242,0.0001096,2]
[353177043,1739631043407,-509.35,0.0001096,2]
[353177044,1739631043417,-500.0,0.0001096,2]
[353177045,1739631043426,-500.0,0.0001096,2]
[353177046,1739631043436,-500.0,0.0001096,2]
[353177047,1739631043446,-305.16,0.0001096,2]
[353177048,1739631043455,-53.81980557,0.0001096,2]
[353177049,1739631043467,-446.18019443,0.0001096,2]
[353177050,1739631043477,-500.0,0.0001096,2]
[353177051,1739631043486,-414.66975557,0.0001096,2]
[353177063,1739631046004,-505.2,0.0001096,2]
[353177064,1739631046014,-85.33024443,0.0001096,2]
[353177065,1739631046023,-500.0,0.0001096,2]
[353177066,1739631046033,-316.32452013,0.0001096,2]
[353177067,1739631046044,-183.67547987,0.0001096,2]
[353177068,1739631046053,-419.27107863,0.0001096,2]
[353177069,1739631046237,-348.547565,0.0001096,2]
[353177070,1739631046253,-123.07135637,0.0001096,2]
[353177071,1739631046263,-500.0,0.0001096,2]
[353177072,1739631046272,-795.63,0.0001096,2]
[353177073,1739631046283,-424.95368196,0.0001096,2]
[353177408,1739631398119,2801.3857053,0.00020667,120]
[353177410,1739631627206,1684.1805,8.699e-05,2]
[353177411,1739631651572,1751.8891,8.699e-05,2]
[353177412,1739631695590,2640.2917,8.699e-05,2]
[353177415,1739631761241,448.67,8.219e-05,2]
[353177416,1739631852561,-10000.0,8.836e-05,2]
[353177417,1739631853471,-298.6018,8.836e-05,2]
[353177418,1739631853494,-5645.2449,8.836e-05,2]
[353177419,1739631853519,-4056.1533,8.836e-05,2]
[353177420,1739631854233,-5087.2687,8.836e-05,2]
[353177421,1739631854256,-215.0377,8.836e-05,2]
[353177422,1739631854277,-2513.7282,8.836e-05,2]
[353177423,1739631854302,-2183.9654,8.836e-05,2]
[353177424,1739631854775,-4213.90673472,8.836e-05,2]
[353177425,1739631854797,-181.0359,8.836e-05,2]
[353177426,1739631854819,-5605.05736528,8.836e-05,2]
[353177427,1739631855383,-10000.0,8.836e-05,2]
[353177428,1739631855875,-10000.0,8.836e-05,2]
[353177429,1739631856370,-10000.0,8.836e-05,2]
[353177430,1739631856934,-10000.0,8.836e-05,2]
[353177431,1739631857385,-10000.0,8.836e-05,2]
[353177432,1739631857903,-10000.0,8.836e-05,2]
[353177433,1739631858451,-9498.07413472,8.836e-05,2]
[353177434,1739631858473,-501.92586528,8.836e-05,2]
[353177435,1739631859135,-10000.0,8.836e-05,2]
[353177436,1739631859710,-7726.57343472,8.836e-05,2]
[353177437,1739631859733,-2273.42656528,8.836e-05,2]
[353177438,1739631870794,2181.3887,8.699e-05,2]
[353177439,1739631870814,4438.5469,8.699e-05,2]
[353177440,1739631880234,4497.14675522,0.0002,120]
[353177441,1739631921309,-288.90543472,8.836e-05,2]
[353177442,1739631921338,-218.64235302,8.836e-05,2]
[353177443,1739631932897,3883.6168,8.699e-05,2]
[353177444,1739631971113,379.738,8.836e-05,2]
[353177445,1739631983810,14620.262,8.836e-05,2]
[353177446,1739631985830,222.3557,8.699e-05,2]
[353177447,1739631992189,312.8051,8.699e-05,2]
[353177448,1739631997106,-1386.98931905,8.836e-05,2]
[353177449,1739632006313,436.4077,8.699e-05,2]
[353177450,1739632016335,-20000.0,8.836e-05,2]
[353177451,1739632019391,-265.33428095,8.836e-05,2]
[353177452,1739632027268,9734.66571905,8.836e-05,2]
[353177453,1739632027290,10000.0,8.836e-05,2]
[353177454,1739632050399,-10000.0,8.836e-05,2]
[353177455,1739632051191,-10000.0,8.836e-05,2]
[353177456,1739632051768,-10000.0,8.836e-05,2]
[353177457,1739632052422,-10000.0,8.836e-05,2]
[353177458,1739632053226,-276.53828095,8.836e-05,2]
[353177459,1739632053248,-3589.4143,8.836e-05,2]
[353177460,1739632053271,-6134.04741905,8.836e-05,2]
[353177461,1739632055077,-3183.93408095,8.836e-05,2]
[353177462,1739632055099,-485.5048,8.836e-05,2]
[353177463,1739632055121,-1004.6704,8.836e-05,2]
[353177464,1739632069038,1493.8033,8.836e-05,2]
[353177465,1739632094547,8506.1967,8.699e-05,2]
[353177466,1739632094572,4589.8846,8.699e-05,2]
[353177467,1739632094593,3180.1873,8.699e-05,2]
[353177468,1739632119163,3883.6168,8.699e-05,2]
[353177469,1739632149418,2653.5542,8.256e-05,2]
[353177470,1739632150442,282.6417,8.119e-05,2]
[353177471,1739632150466,130.0756,8.119e-05,2]
[353177472,1739632155076,-1689.05548,8.836e-05,2]
[353177473,1739632161015,-10000.0,8.836e-05,2]
[353177474,1739632161690,-10000.0,8.836e-05,2]
[353177475,1739632162488,-10000.0,8.836e-05,2]
[353177476,1739632163958,-3912.02672,8.836e-05,2]
[353177477,1739632186431,394.9388,8.836e-05,2]
[353177480,1739632232134,-2815.87792394,8.973e-05,2]
[353177481,1739632232202,-901.44,8.973e-05,2]
[353177482,1739632232255,-1282.68207606,8.973e-05,2]
[353177483,1739632232265,-2345.1385,8.973e-05,2]
[353177484,1739632232274,-218.64235302,9.47e-05,2]
[353177485,1739632232284,-200.0,9.47e-05,2]
[353177486,1739632232294,-166.89,9.526e-05,2]
[353177487,1739632232303,-9090.42239803,9.714e-05,2]
[353177488,1739632232612,-864.38011186,9.714e-05,2]
[353177489,1739632232627,-1305.0,9.714e-05,2]
[353177491,1739632232647,-709.35239291,9.714e-05,2]
[353177494,1739632232685,-2061.51505855,9.714e-05,2]
[353177586,1739632237988,-335.50082644,8.973e-05,2]
[353177587,1739632237998,-7442.79003865,9.714e-05,2]
[353177588,1739632238007,-622.31049673,9.719e-05,2]
[353177590,1739632238016,-150.0,9.719e-05,2]
[353177592,1739632238026,-170.64,9.766e-05,2]
[353177594,1739632238035,-474.82,9.78e-05,2]
[353177595,1739632238043,-837.61,9.79e-05,2]
[353177596,1739632238052,-1000.0,9.823e-05,2]
[353177597,1739632238061,-304.14,9.843e-05,2]
[353177598,1739632238070,-200.0,9.87e-05,2]
[353177599,1739632238079,-150.0,9.87e-05,2]
[353177600,1739632238089,-250.0,9.917e-05,2]
[353177601,1739632238098,-150.0,0.00010036,2]
[353177602,1739632238107,-150.0,0.00010036,2]
[353177603,1739632238116,-150.0,0.00010036,2]
[353177604,1739632238125,-1000.0,0.00010068,2]
[353177605,1739632238135,-800.0,0.00010068,2]
[353177606,1739632238144,-277.8,0.00010137,2]
[353177607,1739632238153,-300.0,0.000102,3]
[353177608,1739632238162,-700.0,0.000103,3]
[353177609,1739632238171,-775.49,0.00010341,2]
[353177610,1739632238180,-1100.0,0.000104,3]
[353177611,1739632238190,-448.67,0.00010456,2]
[353177612,1739632238199,-622.31049673,0.00010486,2]
[353177613,1739632238208,-1400.0,0.000105,3]
[353177614,1739632238217,-301.12,0.00010578,2]
[353177615,1739632238226,-1800.0,0.000106,3]
[353177616,1739632238235,-300.0,0.000107,3]
[353177617,1739632238244,-491.76,0.00010772,2]
[353177618,1739632238253,-300.0,0.000108,3]
[353177619,1739632238262,-218.64235302,0.00010858,2]
[353177620,1739632238272,-1068.15030948,0.0001086,2]
[353177621,1739632238281,-300.0,0.000109,3]
[353177622,1739632238290,-154.53782294,0.000109,2]
[353177623,1739632238300,-53596.33151785,0.00010923,2]
[353177624,1739632238319,-605.72030286,0.00010923,2]
[353177625,1739632238330,-1113.81235035,0.00010923,2]
[353177627,1739632238370,-2775.0,0.00010923,2]
[353177628,1739632238453,-833.24958405,0.00010923,2]
[353177630,1739632240214,-659.9999998,0.00010923,2]
[353177631,1739632240275,-534.43201774,0.00010923,2]
[353177632,1739632240287,-25876.9997672,0.00010923,2]
[353177633,1739632240300,-345.52999994,0.00010923,2]
[353177636,1739632240771,-306.84242817,0.00010923,2]
[353177637,1739632240782,-329.0207687,0.00010923,2]
[353177638,1739632240793,-426.73155788,0.00010923,2]
[353177639,1739632240824,-3185.0,0.00010923,2]
[353177640,1739632240956,-40368.95475764,0.00010923,2]
[353177641,1739632240966,-4613.22780526,0.00010936,2]